fUSD/lending_fUSD_20250616
["ID","MTS","AMOUNT","RATE_DAILY","PERIOD"]
[366149311,1750088627313,-490.0,0.00015997,2]
[366149312,1750088627608,-490.0,0.00015997,2]
[366149313,1750088627634,-490.0,0.00015997,2]
[366149314,1750088627661,-495.40227159,0.00015997,2]
[366149315,1750088627690,-490.0,0.00015997,2]
[366149316,1750088627716,-490.0,0.00015997,2]
[366149317,1750088627740,-490.0,0.00015997,2]
[366149318,1750088627766,-490.0,0.00015997,2]
[366149319,1750088627790,-493.65584201,0.00015997,2]
[366149320,1750088627816,-500.69116406,0.00015997,2]
[366149321,1750088627840,-490.0,0.00015997,2]
[366149322,1750088627866,-499.28590497,0.00015997,2]
[366149323,1750088627891,-490.0,0.00015997,2]
[366149324,1750088627915,-472.48313876,0.00015997,2]
[366149325,1750088627963,-17.51686124,0.00015997,2]
[366149326,1750088627987,-490.0,0.00015997,2]
[366149327,1750088628012,-151.1776921,0.00015997,2]
[366149328,1750088628037,-494.38,0.00015997,2]
[366149329,1750088628063,-490.0,0.00015997,2]
[366149330,1750088628088,-493.05754844,0.00015997,2]
[366149331,1750088628112,-490.0,0.00015997,2]
[366149332,1750088628137,-490.0,0.00015997,2]
[366149333,1750088628161,-490.0,0.00015997,2]
[366149334,1750088628186,-490.0,0.00015997,2]
[366149335,1750088628210,-490.0,0.00015997,2]
[366149336,1750088628234,-490.0,0.00015997,2]
[366149337,1750088628259,-490.0,0.00015997,2]
[366149338,1750088628285,-490.0,0.00015997,2]
[366149339,1750088628310,-495.45223218,0.00015997,2]
[366149340,1750088628336,-490.0,0.00015997,2]
[366149341,1750088628361,-490.0,0.00015997,2]
[366149342,1750088628387,-490.0,0.00015997,2]
[366149343,1750088628411,-490.0,0.00015997,2]
[366149344,1750088628436,-490.0,0.00015997,2]
[366149345,1750088628461,-490.0,0.00015997,2]
[366149346,1750088628487,-499.6484435,0.00015997,2]
[366149347,1750088628513,-8.76722254,0.00015997,2]
[366149348,1750088628676,-481.23277746,0.00015997,2]
[366149349,1750088628702,-635.61,0.00015997,2]
[366149350,1750088628728,-494.30476549,0.00015997,2]
[366149351,1750088628753,-490.0,0.00015997,2]
[366149352,1750088628781,-490.77358112,0.00015997,2]
[366149353,1750088628808,-490.0,0.00015997,2]
[366149354,1750088628833,-490.0,0.00015997,2]
[366149355,1750088628859,-490.0,0.00015997,2]
[366149356,1750088628885,-490.0,0.00015997,2]
[366149357,1750088628910,-481.80698826,0.00015997,2]
[366149358,1750088628935,-490.0,0.00015997,2]
[366149359,1750088628960,-490.0,0.00015997,2]
[366149360,1750088628986,-490.0,0.00015997,2]
[366149361,1750088629012,-490.0,0.00015997,2]
[366149362,1750088629038,-490.0,0.00015997,2]
[366149363,1750088629064,-503.10354873,0.00015997,2]
[366149364,1750088629089,-490.0,0.00015997,2]
[366149365,1750088629114,-490.0,0.00015997,2]
[366149366,1750088629139,-490.77190703,0.00015997,2]
[366149367,1750088629166,-490.0,0.00015997,2]
[366149368,1750088629192,-52.39643191,0.00015997,2]
[366149369,1750088629280,-437.60356809,0.00015997,2]
[366149370,1750088629305,-493.31226651,0.00015997,2]
[366149371,1750088629331,-490.0,0.00015997,2]
[366149372,1750088629356,-490.0,0.00015997,2]
[366149373,1750088629384,-490.0,0.00015997,2]
[366149374,1750088629411,-490.0,0.00015997,2]
[366149375,1750088629437,-490.0,0.00015997,2]
[366149376,1750088629462,-490.0,0.00015997,2]
[366149377,1750088629488,-423.00985309,0.00015997,2]
[366149378,1750088629513,-490.0,0.00015997,2]
[366149379,1750088629537,-490.0,0.00015997,2]
[366149380,1750088629562,-490.0,0.00015997,2]
[366149381,1750088629590,-490.0,0.00015997,2]
[366149382,1750088629827,-490.0,0.00015997,2]
[366149383,1750088629852,-490.0,0.00015997,2]
[366149384,1750088629878,-465.02056825,0.00015997,2]
[366149385,1750088629902,-490.0,0.00015997,2]
[366149386,1750088629927,-490.0,0.00015997,2]
[366149387,1750088629952,-490.0,0.00015997,2]
[366149388,1750088629976,-490.0,0.00015997,2]
[366149389,1750088630000,-341.05374406,0.00015997,2]
[366149390,1750088630043,-148.94625594,0.00015997,2]
[366149391,1750088630069,-490.0,0.00015997,2]
[366149392,1750088630094,-490.0,0.00015997,2]
[366149393,1750088630119,-427.24920997,0.00015997,2]
[366149394,1750088630144,-490.0,0.00015997,2]
[366149395,1750088630170,-857.12,0.00015997,2]
[366149396,1750088630194,-490.0,0.00015997,2]
[366149397,1750088630218,-490.0,0.00015997,2]
[366149398,1750088630242,-490.0,0.00015997,2]
[366149399,1750088630265,-490.0,0.00015997,2]
[366149400,1750088630288,-492.15428554,0.00015997,2]
[366149401,1750088630313,-489.82635256,0.00015997,2]
[366149402,1750088630337,-490.0,0.00015997,2]
[366149403,1750088630360,-490.0,0.00015997,2]
[366149404,1750088630383,-491.39959413,0.00015997,2]
[366149405,1750088630406,-491.27893307,0.00015997,2]
[366149406,1750088630430,-490.0,0.00015997,2]
[366149407,1750088630453,-576.07611543,0.00015997,2]
[366149408,1750088630476,-490.0,0.00015997,2]
[366149409,1750088630500,-490.0,0.00015997,2]
[366149410,1750088630524,-145.94925336,0.00015997,2]
[366149411,1750088630590,-349.90997529,0.00015997,2]
[366149412,1750088630615,-490.0,0.00015997,2]
[366149413,1750088630640,-490.0,0.00015997,2]
[366149414,1750088630665,-490.0,0.00015997,2]
[366149415,1750088630689,-490.0,0.00015997,2]
[366149416,1750088630712,-490.0,0.00015997,2]
[366149417,1750088630737,-995.5,0.00015997,2]
[366149418,1750088630760,-490.0,0.00015997,2]
[366149419,1750088630786,-490.0,0.00015997,2]
[366149420,1750088630810,-490.0,0.00015997,2]
[366149421,1750088631088,-490.0,0.00015997,2]
[366149422,1750088631113,-490.0,0.00015997,2]
[366149423,1750088631137,-490.0,0.00015997,2]
[366149424,1750088631161,-717.06,0.00015997,2]
[366149425,1750088631186,-490.0,0.00015997,2]
[366149426,1750088631211,-490.0,0.00015997,2]
[366149427,1750088631235,-500.0,0.00015997,2]
[366149428,1750088631258,-490.0,0.00015997,2]
[366149429,1750088631282,-490.0,0.00015997,2]
[366149430,1750088631306,-87.53002471,0.00015997,2]
[366149431,1750088631347,-814.04997529,0.00015997,2]
[366149432,1750088631370,-490.0,0.00015997,2]
[366149433,1750088631394,-490.0,0.00015997,2]
[366149434,1750088631418,-500.0,0.00015997,2]
[366149435,1750088631442,-490.0,0.00015997,2]
[366149436,1750088631466,-305.11740735,0.00015997,2]
[366149437,1750088631491,-904.25,0.00015997,2]
[366149438,1750088631516,-600.87,0.00015997,2]
[366149439,1750088631540,-490.0,0.00015997,2]
[366149440,1750088631565,-490.0,0.00015997,2]
[366149441,1750088631591,-429.0913091,0.00015997,2]
[366149442,1750088631616,-553.39,0.00015997,2]
[366149443,1750088631641,-1000.0,0.00015997,2]
[366149444,1750088631667,-646.46,0.00015997,2]
[366149445,1750088631693,-490.0,0.00015997,2]
[366149446,1750088631718,-490.0,0.00015997,2]
[366149447,1750088631743,-816.77130826,0.00015997,2]
[366149448,1750088631978,-54.15869174,0.00015997,2]
[366149449,1750088632003,-490.0,0.00015997,2]
[366149450,1750088632028,-500.0,0.00015997,2]
[366149451,1750088632054,-490.0,0.00015997,2]
[366149452,1750088632083,-490.0,0.00015997,2]
[366149453,1750088632109,-490.0,0.00015997,2]
[366149454,1750088632135,-490.0,0.00015997,2]
[366149455,1750088632159,-490.0,0.00015997,2]
[366149456,1750088632186,-490.0,0.00015997,2]
[366149457,1750088632212,-526.47,0.00015997,2]
[366149458,1750088632239,-1160.25,0.00015997,2]
[366149459,1750088632267,-237.73622035,0.00015997,2]
[366149460,1750088632296,-175.46076377,0.00015997,2]
[366149461,1750088632328,-490.0,0.00015997,2]
[366149462,1750088632355,-490.0,0.00015997,2]
[366149463,1750088632382,-490.0,0.00015997,2]
[366149464,1750088632408,-490.0,0.00015997,2]
[366149465,1750088632433,-490.0,0.00015997,2]
[366149466,1750088632458,-490.0,0.00015997,2]
[366149467,1750088632484,-490.0,0.00015997,2]
[366149468,1750088632510,-485.92432414,0.00015997,2]
[366149469,1750088632546,-4.07567586,0.00015997,2]
[366149470,1750088632575,-490.0,0.00015997,2]
[366149471,1750088632606,-490.0,0.00015997,2]
[366149472,1750088632633,-490.0,0.00015997,2]
[366149473,1750088632659,-490.0,0.00015997,2]
[366149474,1750088632686,-490.0,0.00015997,2]
[366149475,1750088632711,-490.0,0.00015997,2]
[366149476,1750088632735,-1022.27,0.00015997,2]
[366149477,1750088632762,-490.0,0.00015997,2]
[366149478,1750088632787,-734.89,0.00015997,2]
[366149479,1750088632813,-490.0,0.00015997,2]
[366149480,1750088632838,-490.0,0.00015997,2]
[366149481,1750088632864,-274.89861431,0.00015997,2]
[366149482,1750088632889,-490.0,0.00015997,2]
[366149483,1750088632915,-490.0,0.00015997,2]
[366149484,1750088632940,-490.0,0.00015997,2]
[366149485,1750088632965,-505.38804211,0.00015997,2]
[366149486,1750088632990,-490.0,0.00015997,2]
[366149487,1750088633015,-860.85,0.00015997,2]
[366149488,1750088633039,-227.62766772,0.00015997,2]
[366149489,1750088633103,-262.37233228,0.00015997,2]
[366149490,1750088633127,-1251.36,0.00015997,2]
[366149491,1750088633151,-490.0,0.00015997,2]
[366149492,1750088633175,-490.0,0.00015997,2]
[366149493,1750088633199,-546.9,0.00015997,2]
[366149494,1750088633222,-490.0,0.00015997,2]
[366149495,1750088633247,-921.9,0.00015997,2]
[366149496,1750088633272,-490.0,0.00015997,2]
[366149497,1750088633296,-490.0,0.00015997,2]
[366149498,1750088633321,-490.0,0.00015997,2]
[366149499,1750088633345,-654.64,0.00015997,2]
[366149500,1750088633370,-490.0,0.00015997,2]
[366149501,1750088633394,-490.0,0.00015997,2]
[366149502,1750088633418,-490.0,0.00015997,2]
[366149503,1750088633441,-490.0,0.00015997,2]
[366149504,1750088633464,-154.56431373,0.00015997,2]
[366149505,1750088633488,-490.0,0.00015997,2]
[366149506,1750088633517,-490.0,0.00015997,2]
[366149507,1750088633542,-328.26335399,0.00015997,2]
[366149508,1750088633602,-161.73664601,0.00015997,2]
[366149509,1750088633627,-490.0,0.00015997,2]
[366149510,1750088633650,-490.0,0.00015997,2]
[366149511,1750088633675,-490.0,0.00015997,2]
[366149512,1750088633699,-490.0,0.00015997,2]
[366149513,1750088633723,-283.47324968,0.00015997,2]
[366149514,1750088633747,-490.0,0.00015997,2]
[366149515,1750088633771,-490.0,0.00015997,2]
[366149516,1750088633795,-490.0,0.00015997,2]
[366149517,1750088633821,-1256.26,0.00015997,2]
[366149518,1750088633845,-490.0,0.00015997,2]
[366149519,1750088633869,-490.0,0.00015997,2]
[366149520,1750088633893,-490.0,0.00015997,2]
[366149521,1750088633918,-789.95,0.00015997,2]
[366149522,1750088633941,-490.0,0.00015997,2]
[366149523,1750088633965,-821.36,0.00015997,2]
[366149524,1750088633992,-490.0,0.00015997,2]
[366149525,1750088634018,-490.0,0.00015997,2]
[366149526,1750088634044,-317.22010431,0.00015997,2]
[366149527,1750088634315,-172.77989569,0.00015997,2]
[366149528,1750088634343,-490.0,0.00015997,2]
[366149529,1750088634370,-506.43830112,0.00015997,2]
[366149530,1750088634395,-877.41,0.00015997,2]
[366149531,1750088634419,-426.63621724,0.00015997,2]
[366149532,1750088634444,-490.0,0.00015997,2]
[366149533,1750088634468,-490.0,0.00015997,2]
[366149534,1750088634493,-490.0,0.00015997,2]
[366149535,1750088634518,-822.66,0.00015997,2]
[366149536,1750088634543,-490.0,0.00015997,2]
[366149537,1750088634568,-490.0,0.00015997,2]
[366149538,1750088634597,-490.0,0.00015997,2]
[366149539,1750088634623,-490.0,0.00015997,2]
[366149540,1750088634652,-490.0,0.00015997,2]
[366149541,1750088634682,-490.0,0.00015997,2]
[366149542,1750088634708,-1009.02,0.00015997,2]
[366149543,1750088634737,-624.48,0.00015997,2]
[366149544,1750088634765,-490.0,0.00015997,2]
[366149545,1750088634791,-170.57558595,0.00015997,2]
[366149546,1750088634848,-189.08326742,0.00015997,2]
[366149547,1750088634877,-490.0,0.00015997,2]
[366149548,1750088634903,-490.0,0.00015997,2]
[366149549,1750088634929,-490.0,0.00015997,2]
[366149550,1750088634954,-490.0,0.00015997,2]
[366149551,1750088634980,-490.0,0.00015997,2]
[366149552,1750088635006,-736.86,0.00015997,2]
[366149553,1750088635032,-490.0,0.00015997,2]
[366149554,1750088635058,-500.0,0.00015997,2]
[366149555,1750088635082,-1427.09,0.00015997,2]
[366149556,1750088635107,-656.72,0.00015997,2]
[366149557,1750088635130,-490.36052771,0.00015997,2]
[366149558,1750088635156,-490.0,0.00015997,2]
[366149559,1750088635180,-490.0,0.00015997,2]
[366149560,1750088635204,-490.0,0.00015997,2]
[366149561,1750088635228,-1243.1,0.00015997,2]
[366149562,1750088635253,-346.78620487,0.00015997,2]
[366149563,1750088635296,-143.21379513,0.00015997,2]
[366149564,1750088635322,-490.0,0.00015997,2]
[366149565,1750088635350,-490.0,0.00015997,2]
[366149566,1750088635374,-1402.88,0.00015997,2]
[366149567,1750088635399,-490.0,0.00015997,2]
[366149568,1750088635424,-490.0,0.00015997,2]
[366149569,1750088635450,-490.0,0.00015997,2]
[366149570,1750088635474,-490.0,0.00015997,2]
[366149571,1750088635499,-491.75563242,0.00015997,2]
[366149572,1750088635524,-697.48,0.00015997,2]
[366149573,1750088635549,-204.20582792,0.00015997,2]
[366149574,1750088635575,-490.0,0.00015997,2]
[366149575,1750088635603,-907.25,0.00015997,2]
[366149576,1750088635628,-490.0,0.00015997,2]
[366149577,1750088635654,-490.0,0.00015997,2]
[366149578,1750088635680,-490.0,0.00015997,2]
[366149579,1750088635704,-490.0,0.00015997,2]
[366149580,1750088635728,-490.0,0.00015997,2]
[366149581,1750088635753,-273.21474453,0.00015997,2]
[366149582,1750088635814,-216.78525547,0.00015997,2]
[366149583,1750088635841,-630.04,0.00015997,2]
[366149584,1750088635867,-828.59,0.00015997,2]
[366149585,1750088635894,-490.0,0.00015997,2]
[366149586,1750088635920,-764.5,0.00015997,2]
[366149587,1750088635946,-658.96,0.00015997,2]
[366149588,1750088635973,-923.13,0.00015997,2]
[366149589,1750088635998,-652.68,0.00015997,2]
[366149590,1750088636023,-589.91,0.00015997,2]
[366149591,1750088636047,-490.0,0.00015997,2]
[366149592,1750088636074,-490.0,0.00015997,2]
[366149593,1750088636100,-490.0,0.00015997,2]
[366149594,1750088636125,-588.0,0.00015997,2]
[366149595,1750088636150,-490.0,0.00015997,2]
[366149596,1750088636177,-903.41,0.00015997,2]
[366149597,1750088636202,-490.0,0.00015997,2]
[366149598,1750088636226,-303.99474453,0.00015997,2]
[366149599,1750088636280,-186.00525547,0.00015997,2]
[366149600,1750088636305,-490.0,0.00015997,2]
[366149601,1750088636331,-490.0,0.00015997,2]
[366149602,1750088636355,-490.0,0.00015997,2]
[366149603,1750088636382,-783.61,0.00015997,2]
[366149604,1750088636408,-490.0,0.00015997,2]
[366149605,1750088636435,-490.0,0.00015997,2]
[366149606,1750088636459,-596.5,0.00015997,2]
[366149607,1750088636485,-490.0,0.00015997,2]
[366149608,1750088636508,-595.7,0.00015997,2]
[366149609,1750088636532,-490.0,0.00015997,2]
[366149610,1750088636557,-565.21,0.00015997,2]
[366149611,1750088636584,-490.0,0.00015997,2]
[366149612,1750088636614,-562.95,0.00015997,2]
[366149613,1750088636639,-490.0,0.00015997,2]
[366149614,1750088636665,-954.69,0.00015997,2]
[366149615,1750088636691,-702.71,0.00015997,2]
[366149616,1750088636718,-642.62474453,0.00015997,2]
[366149617,1750088636858,-57.63525547,0.00015997,2]
[366149618,1750088636883,-490.0,0.00015997,2]
[366149619,1750088636908,-490.0,0.00015997,2]
[366149620,1750088636933,-771.91,0.00015997,2]
[366149621,1750088636957,-490.0,0.00015997,2]
[366149622,1750088636981,-490.0,0.00015997,2]
[366149623,1750088637006,-2823.16,0.00015997,2]
[366149624,1750088637030,-490.0,0.00015997,2]
[366149625,1750088637054,-490.0,0.00015997,2]
[366149626,1750088637080,-2211.53,0.00015997,2]
[366149627,1750088637103,-490.0,0.00015997,2]
[366149628,1750088637127,-705.76474453,0.00015997,2]
[366149629,1750088637814,-444.98525547,0.00015997,2]
[366149630,1750088637841,-490.0,0.00015997,2]
[366149631,1750088637867,-2013.9,0.00015997,2]
[366149632,1750088637892,-490.0,0.00015997,2]
[366149633,1750088637917,-1267.33,0.00015997,2]
[366149634,1750088637943,-490.0,0.00015997,2]
[366149635,1750088637969,-490.0,0.00015997,2]
[366149636,1750088637995,-490.0,0.00015997,2]
[366149637,1750088638022,-1669.15,0.00015997,2]
[366149638,1750088638047,-2082.51,0.00015997,2]
[366149639,1750088638072,-72.12474453,0.00015997,2]
[366149640,1750088638106,-417.87525547,0.00015997,2]
[366149641,1750088638130,-496.15468185,0.00015997,2]
[366149642,1750088638154,-490.0,0.00015997,2]
[366149643,1750088638177,-490.0,0.00015997,2]
[366149644,1750088638201,-511.54,0.00015997,2]
[366149645,1750088638230,-2046.48,0.00015997,2]
[366149646,1750088638257,-490.0,0.00015997,2]
[366149647,1750088638283,-2994.04,0.00015997,2]
[366149648,1750088638314,-1726.14,0.00015997,2]
[366149649,1750088638338,-337.77006268,0.00015997,2]
[366149650,1750088638547,-158.18993732,0.00015997,2]
[366149651,1750088638580,-490.0,0.00015997,2]
[366149652,1750088638609,-2965.07,0.00015997,2]
[366149653,1750088638635,-490.0,0.00015997,2]
[366149654,1750088638659,-490.0,0.00015997,2]
[366149655,1750088638687,-2978.15,0.00015997,2]
[366149656,1750088638711,-2428.59006268,0.00015997,2]
[366149657,1750088638745,-10000.0,0.00015997,2]
[366149658,1750088638790,-2440.79993732,0.00015997,2]
[366149659,1750088638816,-1030.44676899,0.00015997,2]
[366149660,1750088638842,-490.0,0.00015997,2]
[366149661,1750088638867,-490.0,0.00015997,2]
[366149662,1750088638893,-490.0,0.00015997,2]
[366149663,1750088638918,-490.0,0.00015997,2]
[366149664,1750088638944,-614.98,0.00015997,2]
[366149665,1750088638968,-490.0,0.00015997,2]
[366149666,1750088638993,-938.54,0.00015997,2]
[366149667,1750088639019,-2525.23329369,0.00015997,2]
[366149668,1750088639060,-976.69670631,0.00015997,2]
[366149669,1750088639085,-490.0,0.00015997,2]
[366149670,1750088639108,-5845.08,0.00015997,2]
[366149671,1750088639132,-490.0,0.00015997,2]
[366149672,1750088639156,-494.66783585,0.00015997,2]
[366149673,1750088639182,-1703.55545784,0.00015997,2]
[366149674,1750088639226,-1850.30454216,0.00015997,2]
[366149675,1750088639251,-2773.84,0.00015997,2]
[366149676,1750088639275,-490.0,0.00015997,2]
[366149677,1750088639299,-1370.14,0.00015997,2]
[366149678,1750088639326,-490.0,0.00015997,2]
[366149679,1750088639350,-802.23,0.00015997,2]
[366149680,1750088639375,-1270.18,0.00015997,2]
[366149681,1750088639400,-592.13,0.00015997,2]
[366149682,1750088639426,-361.17545784,0.00015997,2]
[366149683,1750088639461,-3504.72454216,0.00015997,2]
[366149684,1750088639487,-654.42,0.00015997,2]
[366149685,1750088639512,-490.0,0.00015997,2]
[366149686,1750088639539,-1857.0,0.00015997,2]
[366149687,1750088639565,-490.0,0.00015997,2]
[366149688,1750088639594,-490.0,0.00015997,2]
[366149689,1750088639619,-500.0,0.00015997,2]
[366149690,1750088639645,-490.0,0.00015997,2]
[366149691,1750088639672,-728.36,0.00015997,2]
[366149692,1750088639699,-490.0,0.00015997,2]
[366149693,1750088639725,-305.49545784,0.00015997,2]
[366149694,1750088639790,-337.28454216,0.00015997,2]
[366149695,1750088639816,-490.0,0.00015997,2]
[366149696,1750088639845,-1382.15,0.00015997,2]
[366149697,1750088639871,-490.0,0.00015997,2]
[366149698,1750088639898,-1719.77,0.00015997,2]
[366149699,1750088639923,-490.0,0.00015997,2]
[366149700,1750088639948,-490.0,0.00015997,2]
[366149701,1750088639973,-490.0,0.00015997,2]
[366149702,1750088640000,-4110.79545784,0.00015997,2]
[366149703,1750088640097,-7882.28454216,0.00015997,2]
[366149704,1750088640124,-490.0,0.00015997,2]
[366149705,1750088640150,-806.59,0.00015997,2]
[366149706,1750088640175,-821.12545784,0.00015997,2]
[366149707,1750088640263,-269.50454216,0.00015997,2]
[366149708,1750088640291,-2564.43,0.00015997,2]
[366149709,1750088640548,-2862.23,0.00015997,2]
[366149710,1750088640577,-490.0,0.00015997,2]
[366149711,1750088640606,-490.0,0.00015997,2]
[366149712,1750088640633,-490.0,0.00015997,2]
[366149713,1750088640659,-490.0,0.00015997,2]
[366149714,1750088640687,-420.82110946,0.00015997,2]
[366149715,1750088640714,-490.0,0.00015997,2]
[366149716,1750088640740,-1284.34,0.00015997,2]
[366149717,1750088640766,-148.67434838,0.00015997,2]
[366149718,1750088640809,-341.32565162,0.00015997,2]
[366149719,1750088640837,-547.09,0.00015997,2]
[366149720,1750088640862,-492.94576572,0.00015997,2]
[366149721,1750088640888,-490.0,0.00015997,2]
[366149722,1750088640914,-1184.52,0.00015997,2]
[366149723,1750088640940,-2010.27,0.00015997,2]
[366149724,1750088640966,-555.39,0.00015997,2]
[366149725,1750088640992,-871.22,0.00015997,2]
[366149726,1750088641018,-1434.01,0.00015997,2]
[366149727,1750088641044,-1460.82,0.00015997,2]
[366149728,1750088641070,-490.0,0.00015997,2]
[366149729,1750088641096,-122.40858266,0.00015997,2]
[366149730,1750088641135,-367.59141734,0.00015997,2]
[366149731,1750088641160,-1170.54,0.00015997,2]
[366149732,1750088641185,-490.0,0.00015997,2]
[366149733,1750088641210,-2013.15,0.00015997,2]
[366149734,1750088641236,-919.46,0.00015997,2]
[366149735,1750088641260,-490.0,0.00015997,2]
[366149736,1750088641286,-671.64,0.00015997,2]
[366149737,1750088641314,-515.36,0.00015997,2]
[366149738,1750088641340,-490.0,0.00015997,2]
[366149739,1750088641364,-1169.39,0.00015997,2]
[366149740,1750088641389,-612.39,0.00015997,2]
[366149741,1750088641413,-693.06,0.00015997,2]
[366149742,1750088641438,-397.41858266,0.00015997,2]
[366149743,1750088641501,-92.58141734,0.00015997,2]
[366149744,1750088641526,-490.0,0.00015997,2]
[366149745,1750088641551,-490.0,0.00015997,2]
[366149746,1750088641578,-490.0,0.00015997,2]
[366149747,1750088641606,-999.06,0.00015997,2]
[366149748,1750088641632,-566.79373436,0.00015997,2]
[366149749,1750088641658,-333.25972153,0.00015997,2]
[366149750,1750088641686,-522.94,0.00015997,2]
[366149751,1750088641710,-1639.52,0.00015997,2]
[366149752,1750088641735,-1721.49,0.00015997,2]
[366149753,1750088641760,-494.9207247,0.00015997,2]
[366149754,1750088641787,-490.0,0.00015997,2]
[366149755,1750088641814,-595.59,0.00015997,2]
[366149756,1750088641840,-490.0,0.00015997,2]
[366149757,1750088641865,-490.0,0.00015997,2]
[366149758,1750088641891,-93.84440207,0.00015997,2]
[366149759,1750088641991,-396.15559793,0.00015997,2]
[366149760,1750088642018,-1675.34,0.00015997,2]
[366149761,1750088642043,-652.47,0.00015997,2]
[366149762,1750088642069,-2099.64,0.00015997,2]
[366149763,1750088642093,-490.0,0.00015997,2]
[366149764,1750088642118,-813.47,0.00015997,2]
[366149765,1750088642142,-3872.92440207,0.00015997,2]
[366149766,1750088642198,-623.82559793,0.00015997,2]
[366149767,1750088642222,-491.2364745,0.00015997,2]
[366149768,1750088642248,-586.3,0.00015997,2]
[366149769,1750088642273,-576.46,0.00015997,2]
[366149770,1750088642298,-490.0,0.00015997,2]
[366149771,1750088642325,-490.0,0.00015997,2]
[366149772,1750088642353,-1056.93,0.00015997,2]
[366149773,1750088642378,-1094.34,0.00015997,2]
[366149774,1750088642402,-490.0,0.00015997,2]
[366149775,1750088642429,-490.0,0.00015997,2]
[366149776,1750088642454,-527.47,0.00015997,2]
[366149777,1750088642479,-704.71,0.00015997,2]
[366149778,1750088642503,-490.0,0.00015997,2]
[366149779,1750088642528,-1888.72792757,0.00015997,2]
[366149780,1750088642558,-206.90207243,0.00015997,2]
[366149781,1750088642584,-490.0,0.00015997,2]
[366149782,1750088642613,-587.22,0.00015997,2]
[366149783,1750088642639,-490.0,0.00015997,2]
[366149784,1750088642667,-8225.87792757,0.00015997,2]
[366149785,1750088642807,-5683.46207243,0.00015997,2]
[366149786,1750088642833,-490.0,0.00015997,2]
[366149787,1750088642859,-490.0,0.00015997,2]
[366149788,1750088642885,-490.0,0.00015997,2]
[366149789,1750088642909,-490.0,0.00015997,2]
[366149790,1750088642934,-537.55,0.00015997,2]
[366149791,1750088642958,-490.0,0.00015997,2]
[366149792,1750088642983,-1328.98792757,0.00015997,2]
[366149793,1750088643036,-5049.59207243,0.00015997,2]
[366149794,1750088643061,-490.0,0.00015997,2]
[366149795,1750088643086,-490.0,0.00015997,2]
[366149796,1750088643113,-490.0,0.00015997,2]
[366149797,1750088643137,-490.0,0.00015997,2]
[366149798,1750088643162,-2418.93,0.00015997,2]
[366149799,1750088643187,-490.0,0.00015997,2]
[366149800,1750088643211,-81.47792757,0.00015997,2]
[366149801,1750088643252,-408.52207243,0.00015997,2]
[366149802,1750088643277,-1837.83,0.00015997,2]
[366149803,1750088643302,-490.0,0.00015997,2]
[366149804,1750088643327,-490.0,0.00015997,2]
[366149805,1750088643354,-490.0,0.00015997,2]
[366149806,1750088643380,-490.0,0.00015997,2]
[366149807,1750088643406,-5793.64792757,0.00015997,2]
[366149808,1750088643437,-401.32207243,0.00015997,2]
[366149809,1750088643463,-1489.74,0.00015997,2]
[366149810,1750088643489,-490.0,0.00015997,2]